bitfinex/quotes_BTCUSD_20240929
["timestamp","ask_amount","ask_price","bid_price","bid_amount"]
[1727621260570,0.21375985,65846.0,65845.0,0.003827]
[1727621260816,0.21375985,65846.0,65845.0,0.006827]
[1727621261086,0.23756524,65846.0,65845.0,0.158698]
[1727621264365,0.21375985,65846.0,65845.0,0.158698]
[1727621267294,0.23756506,65846.0,65845.0,0.158698]
[1727621267526,0.21375985,65846.0,65845.0,0.158698]
[1727621270959,0.23756508,65846.0,65845.0,0.158698]
[1727621272121,0.21375985,65846.0,65845.0,0.158698]
[1727621273239,0.21375985,65846.0,65845.0,0.006827]
[1727621276599,0.23756511,65846.0,65845.0,0.006827]
[1727621277946,0.38943411,65846.0,65845.0,0.006827]
[1727621278397,0.23756511,65846.0,65845.0,0.006827]
[1727621278907,0.38943411,65846.0,65845.0,0.006827]
[1727621279148,0.23756511,65846.0,65845.0,0.006827]
[1727621279364,0.38943411,65846.0,65845.0,0.006827]
[1727621280231,0.23756511,65846.0,65845.0,0.006827]
[1727621280872,0.21375985,65846.0,65845.0,0.006827]
[1727621281749,0.21375985,65846.0,65845.0,0.158698]
[1727621281961,0.21375985,65846.0,65845.0,0.006827]
[1727621282873,0.21375985,65846.0,65845.0,0.158698]
[1727621285251,0.23756494,65846.0,65845.0,0.158698]
[1727621285497,0.21375985,65846.0,65845.0,0.158698]
[1727621287977,0.21375985,65846.0,65845.0,0.006827]
[1727621292986,0.41107044,65846.0,65845.0,0.006827]
[1727621293188,0.61754845,65846.0,65845.0,0.006827]
[1727621293411,0.52666526,65846.0,65845.0,0.006827]
[1727621293869,0.52666526,65846.0,65845.0,0.003827]
[1727621294325,0.66299004,65846.0,65845.0,0.003827]
[1727621294569,0.66293263,65846.0,65845.0,0.003827]
[1727621294813,0.66293219,65846.0,65845.0,0.000827]
[1727621295287,0.66293219,65846.0,65845.0,0.001827]
[1727621295520,0.6867403,65846.0,65845.0,0.000827]
[1727621295996,0.84312836,65846.0,65845.0,0.001827]
[1727621296236,0.6867403,65846.0,65845.0,0.001827]
[1727621296497,0.68670826,65846.0,65845.0,0.000827]
[1727621296747,0.68770826,65846.0,65845.0,0.000827]
[1727621297244,0.68541319,65846.0,65845.0,0.000827]
[1727621297733,0.68641319,65846.0,65845.0,0.000827]
[1727621298549,0.55017806,65846.0,65845.0,0.000827]
[1727621298788,0.70656612,65846.0,65845.0,0.001827]
[1727621299028,0.84180125,65846.0,65845.0,0.001827]
[1727621299277,0.84980125,65846.0,65845.0,0.002827]
[1727621299797,0.71356612,65846.0,65845.0,0.002827]
[1727621300036,0.71356612,65846.0,65845.0,0.001827]
[1727621300290,0.84180125,65846.0,65845.0,0.000827]
[1727621300551,0.84180125,65846.0,65845.0,0.001827]
[1727621300790,0.85080125,65846.0,65845.0,0.001827]
[1727621301280,0.85380125,65846.0,65845.0,0.002827]
[1727621301531,0.85080125,65846.0,65845.0,0.001827]
[1727621301790,0.85080125,65846.0,65845.0,0.002827]
[1727621302054,0.84476081,65846.0,65845.0,0.001827]
[1727621302293,0.85476081,65846.0,65845.0,0.001827]
[1727621302798,0.84476081,65846.0,65845.0,0.001827]
[1727621303268,0.85376081,65846.0,65845.0,0.001827]
[1727621304266,0.71752356,65846.0,65845.0,0.001827]
[1727621305245,0.85376081,65846.0,65845.0,0.001827]
[1727621305485,0.85377164,65846.0,65845.0,0.001827]
[1727621305747,0.82996353,65846.0,65845.0,0.001827]
[1727621306232,0.83496353,65846.0,65845.0,0.001827]
[1727621306493,1.05226489,65846.0,65845.0,9.18e-05]
[1727621306728,1.14777959,65846.0,65845.0,9.18e-05]
[1727621306996,0.92399798,65846.0,65845.0,9.18e-05]
[1727621307264,0.87506022,65846.0,65845.0,9.18e-05]
[1727621307500,0.82371545,65846.0,65845.0,9.18e-05]
[1727621308413,0.97687857,65846.0,65845.0,9.18e-05]
[1727621308644,1.07130891,65846.0,65845.0,9.18e-05]
[1727621308863,0.8475273,65846.0,65845.0,9.18e-05]
[1727621309525,1.00065884,65846.0,65845.0,9.18e-05]
[1727621309739,0.97684699,65846.0,65845.0,9.18e-05]
[1727621310379,1.04749706,65846.0,65845.0,9.18e-05]
[1727621310563,0.83476234,65846.0,65845.0,9.18e-05]
[1727621311038,0.98789388,65846.0,65845.0,9.18e-05]
[1727621311251,0.98680447,65846.0,65845.0,9.18e-05]
[1727621311477,0.8337004,65846.0,65845.0,9.18e-05]
[1727621312403,1.05579165,65846.0,65845.0,9.18e-05]
[1727621312593,0.8337004,65846.0,65845.0,9.18e-05]
[1727621313592,0.8317004,65846.0,65845.0,9.18e-05]
[1727621314017,0.85551214,65846.0,65845.0,9.18e-05]
[1727621315547,0.86014685,65846.0,65845.0,9.18e-05]
[1727621315790,1.08219066,65846.0,65845.0,0.0009188]
[1727621316244,0.90883715,65846.0,65845.0,0.0009188]
[1727621316494,0.39711651,65844.0,65843.0,9.105e-05]
[1727621316711,0.73353335,65844.0,65843.0,9.105e-05]
[1727621316924,0.99443361,65844.0,65843.0,9.105e-05]
[1727621317183,1.04577838,65844.0,65843.0,9.105e-05]
[1727621318048,1.05477838,65844.0,65843.0,0.00109105]
[1727621318286,1.21116644,65844.0,65843.0,0.00109105]
[1727621318958,1.21916644,65844.0,65843.0,0.00109105]
[1727621320552,1.21885011,65844.0,65843.0,0.00109105]
[1727621321727,1.21685011,65844.0,65843.0,0.00109105]
[1727621322370,1.21885011,65844.0,65843.0,0.00109105]
[1727621322804,1.21685011,65844.0,65843.0,0.00109105]
[1727621322991,1.21885011,65844.0,65843.0,0.00109105]
[1727621323235,1.24266259,65844.0,65843.0,0.00109105]
[1727621324500,1.21885011,65844.0,65843.0,0.00109105]
[1727621325165,1.21878101,65844.0,65843.0,0.00109105]
[1727621326053,1.22878101,65844.0,65843.0,0.00109105]
[1727621326284,1.22878101,65844.0,65843.0,5.646e-05]
[1727621326508,1.27948107,65844.0,65843.0,5.646e-05]
[1727621326960,1.30329373,65844.0,65843.0,5.646e-05]
[1727621327661,1.29329373,65844.0,65843.0,5.646e-05]
[1727621328303,1.29329373,65844.0,65843.0,0.00088346]
[1727621328949,1.27948107,65844.0,65843.0,4.693e-05]
[1727621329375,1.4323594,65844.0,65843.0,4.693e-05]
[1727621330003,1.4243594,65844.0,65843.0,4.693e-05]
[1727621330343,1.27348107,65844.0,65843.0,4.693e-05]
[1727621330771,1.27648107,65844.0,65843.0,4.693e-05]
[1727621331468,1.29048107,65844.0,65843.0,4.693e-05]
[1727621332344,1.31429451,65844.0,65843.0,4.693e-05]
[1727621334631,1.31388734,65844.0,65843.0,4.693e-05]
[1727621336267,0.156885,65839.0,65838.0,0.0002353]
[1727621336485,0.77000146,65839.0,65838.0,0.0002353]
[1727621337116,1.04530887,65839.0,65838.0,0.0002353]
[1727621337677,1.12387461,65839.0,65838.0,0.0002353]
[1727621337941,1.12387461,65839.0,65838.0,1.35e-05]
[1727621338157,1.28026267,65839.0,65838.0,1.35e-05]
[1727621338368,1.29026267,65839.0,65838.0,1.35e-05]
[1727621339677,1.31671273,65839.0,65838.0,1.35e-05]
[1727621340101,1.31407756,65839.0,65838.0,1.35e-05]
[1727621340968,1.29026267,65839.0,65838.0,1.35e-05]
[1727621341593,1.30101614,65839.0,65838.0,1.35e-05]
[1727621341808,1.2504504,65839.0,65838.0,1.35e-05]
[1727621342457,1.2491642,65839.0,65838.0,1.35e-05]
[1727621343098,1.25179935,65839.0,65838.0,1.35e-05]
[1727621343962,1.2756141,65839.0,65838.0,1.35e-05]
[1727621345945,0.14,65838.0,65837.0,7.27e-06]
[1727621346213,0.67246246,65838.0,65837.0,7.27e-06]
[1727621346395,0.27214651,65831.0,65830.0,0.04966307]
[1727621346634,0.58323617,65831.0,65830.0,0.04966307]
[1727621346846,0.151917,65825.0,65824.0,0.22690658]
[1727621347057,0.151917,65825.0,65823.0,0.0934]
[1727621347058,0.15192,65824.0,65823.0,0.0934]
[1727621347272,0.30974658,65824.0,65823.0,0.0934]
[1727621347530,0.34841723,65824.0,65823.0,0.0934]
[1727621348381,0.37423296,65824.0,65823.0,0.0934]
[1727621348853,0.37423296,65824.0,65823.0,0.1703]
[1727621349724,0.37523296,65824.0,65823.0,0.1703]
[1727621350873,0.35141723,65824.0,65823.0,0.1703]
[1727621351109,0.19949723,65824.0,65823.0,0.1703]
[1727621351344,0.28450487,65824.0,65823.0,0.1703]
[1727621351529,0.19359065,65824.0,65823.0,0.1703]
[1727621351745,0.35222425,65824.0,65823.0,0.1703]
[1727621351960,0.20030425,65824.0,65823.0,0.1703]
[1727621352388,0.20030425,65824.0,65823.0,0.171127]
[1727621352608,0.31396695,65824.0,65823.0,0.171127]
[1727621352862,0.46588695,65824.0,65823.0,0.171127]
[1727621353334,0.35222425,65824.0,65823.0,0.171127]
[1727621354004,0.20030425,65824.0,65823.0,0.171127]
[1727621354224,0.20030425,65824.0,65823.0,0.323049]
[1727621354448,0.20030425,65824.0,65823.0,0.171127]
[1727621355761,0.35222425,65824.0,65823.0,0.171127]
[1727621357117,0.20030425,65824.0,65823.0,0.171127]
[1727621357336,0.35222425,65824.0,65823.0,0.171127]
[1727621358244,0.46588695,65824.0,65823.0,0.171127]
[1727621361858,0.4659539,65824.0,65823.0,0.171127]
[1727621362280,0.3140339,65824.0,65823.0,0.171127]
[1727621363680,0.4659539,65824.0,65823.0,0.171127]
[1727621365647,0.46612808,65824.0,65823.0,0.171127]
[1727621368422,0.35238438,65824.0,65823.0,0.171127]
[1727621369291,0.48472832,65824.0,65823.0,0.171127]
[1727621372400,0.35238438,65824.0,65823.0,0.171127]
[1727621375269,0.35270414,65824.0,65823.0,0.171127]
[1727621380787,0.49028524,65824.0,65823.0,0.171127]
[1727621381007,0.33836524,65824.0,65823.0,0.171127]
[1727621381220,0.49028524,65824.0,65823.0,0.171127]
[1727621381861,0.33836524,65824.0,65823.0,0.171127]
[1727621382329,0.49028524,65824.0,65823.0,0.171127]
[1727621385680,0.33836524,65824.0,65823.0,0.171127]
[1727621385932,0.31562188,65824.0,65823.0,0.171127]
[1727621386993,0.31562188,65824.0,65823.0,0.323049]
[1727621387201,0.31562188,65824.0,65823.0,0.171127]
[1727621387416,0.46754188,65824.0,65823.0,0.171127]
[1727621389486,0.46787217,65824.0,65823.0,0.171127]
[1727621389702,0.31595217,65824.0,65823.0,0.171127]
[1727621389931,0.46787217,65824.0,65823.0,0.171127]
[1727621392069,0.3768448,65824.0,65823.0,0.171127]
[1727621394267,0.37698121,65824.0,65823.0,0.171127]
[1727621394470,0.49085824,65824.0,65823.0,0.171127]
[1727621395316,0.33893824,65824.0,65823.0,0.171127]
[1727621395652,0.49085824,65824.0,65823.0,0.171127]
[1727621396297,0.33893824,65824.0,65823.0,0.171127]
[1727621396524,0.22506121,65824.0,65823.0,0.171127]
[1727621398002,0.37698121,65824.0,65823.0,0.171127]
[1727621398964,0.37708825,65824.0,65823.0,0.171127]
[1727621399389,0.33908272,65824.0,65823.0,0.171127]
[1727621401667,0.49100272,65824.0,65823.0,0.171127]
[1727621401880,0.33908272,65824.0,65823.0,0.171127]
[1727621402313,0.33906286,65824.0,65823.0,0.171127]
[1727621402766,0.33906286,65824.0,65823.0,0.323049]
[1727621403020,0.33906286,65824.0,65823.0,0.171127]
[1727621404136,0.37707169,65824.0,65823.0,0.000827]
[1727621405770,0.51376509,65824.0,65823.0,0.000827]
[1727621406654,0.51326132,65824.0,65823.0,0.000827]
[1727621408863,0.59026132,65824.0,65823.0,0.000827]
[1727621409071,0.74664938,65824.0,65823.0,0.000827]
[1727621411404,0.74646154,65824.0,65823.0,0.000827]
[1727621413503,0.84276154,65824.0,65823.0,0.000827]
[1727621413716,0.66255946,65824.0,65823.0,0.000827]
[1727621414860,0.52591873,65824.0,65823.0,0.000827]
[1727621416899,0.54973473,65824.0,65823.0,0.000827]
[1727621417120,0.77247509,65824.0,65823.0,0.000827]
[1727621418282,0.74635909,65824.0,65823.0,0.000827]
[1727621418523,0.66021079,65824.0,65823.0,0.000827]
[1727621420773,0.66006646,65824.0,65823.0,0.000827]
[1727621425593,0.6600125,65824.0,65823.0,0.000827]
[1727621428957,0.4867125,65824.0,65823.0,0.000827]
[1727621430201,0.48638729,65824.0,65823.0,0.000827]
[1727621430415,0.34985065,65824.0,65823.0,0.000827]
[1727621432018,0.33561256,65824.0,65823.0,0.000827]
[1727621435821,0.33726656,65824.0,65823.0,0.000827]
[1727621437756,0.36108232,65824.0,65823.0,0.000827]
[1727621442388,0.49761896,65824.0,65823.0,0.000827]
[1727621443042,0.36108232,65824.0,65823.0,0.000827]
[1727621444642,0.36140507,65824.0,65823.0,0.000827]
[1727621446861,0.33758931,65824.0,65823.0,0.094927]
[1727621449059,0.17870656,65824.0,65823.0,0.094927]
[1727621449299,0.33796982,65824.0,65823.0,0.094927]
[1727621456307,0.33796982,65824.0,65823.0,0.000827]
[1727621458746,0.33778528,65824.0,65823.0,0.000827]
[1727621461094,0.18586528,65824.0,65823.0,0.000827]
[1727621461335,0.33778528,65824.0,65823.0,0.000827]
[1727621462316,0.18586528,65824.0,65823.0,0.26799151]
[1727621462522,0.14058871,65824.0,65823.0,0.44329151]
[1727621462815,0.29966743,65824.0,65823.0,0.44329151]
[1727621463084,0.29966743,65824.0,65823.0,0.29136951]
[1727621463324,0.29766743,65824.0,65823.0,0.176127]
[1727621463813,0.29866743,65824.0,65823.0,0.328049]
[1727621464051,0.29766743,65824.0,65823.0,0.176127]
[1727621466839,0.18386528,65824.0,65823.0,0.176127]
[1727621467104,0.18386528,65824.0,65823.0,0.328049]
[1727621467830,0.20767841,65824.0,65823.0,0.328049]
[1727621468070,0.18386528,65824.0,65823.0,0.328049]
[1727621470467,0.02478656,65824.0,65823.0,0.328049]
[1727621470470,0.27491275,65824.0,65823.0,0.328049]
[1727621470935,0.18386528,65824.0,65823.0,0.328049]
[1727621471188,0.18386528,65824.0,65823.0,0.176127]
[1727621471407,0.18392519,65824.0,65823.0,0.176127]
[1727621472146,0.11583375,65824.0,65823.0,0.176127]
[1727621472395,0.27497238,65824.0,65823.0,0.328049]
[1727621472663,0.29773541,65824.0,65823.0,0.328049]
[1727621475247,0.29773541,65824.0,65823.0,0.176127]
[1727621475501,0.44965541,65824.0,65823.0,0.176127]
[1727621475762,0.44965541,65824.0,65823.0,0.096527]
[1727621476004,0.44960856,65824.0,65823.0,0.000827]
[1727621476224,0.33579305,65824.0,65823.0,0.000827]
[1727621478622,0.42959305,65824.0,65823.0,0.000827]
[1727621479040,0.56617167,65824.0,65823.0,0.000827]
[1727621479676,0.42959305,65824.0,65823.0,0.000827]
[1727621482123,0.42903649,65824.0,65823.0,0.000827]
[1727621482353,0.45285269,65824.0,65823.0,0.000827]
[1727621485497,0.42891098,65824.0,65823.0,0.000827]
[1727621491622,0.45272683,65824.0,65823.0,0.000827]
[1727621492814,0.42891098,65824.0,65823.0,0.000827]
[1727621494219,0.56541101,65824.0,65823.0,0.000827]
[1727621494868,0.42892001,65824.0,65823.0,0.000827]
[1727621495829,0.56541638,65824.0,65823.0,0.000827]
[1727621499661,0.56535879,65824.0,65823.0,0.000827]
[1727621500316,0.58917476,65824.0,65823.0,0.000827]
[1727621500530,0.45269955,65824.0,65823.0,0.000827]
[1727621501007,0.58917533,65824.0,65823.0,0.000827]
[1727621503083,0.60908761,65824.0,65823.0,0.000827]
[1727621504255,0.45071059,65824.0,65823.0,0.000827]
[1727621504475,0.60891186,65824.0,65823.0,0.000827]
[1727621505137,0.4525238,65824.0,65823.0,0.000827]
[1727621505359,0.64459573,65824.0,65823.0,0.000827]
[1727621505582,0.61877976,65824.0,65823.0,0.000827]
[1727621505809,0.51450783,65824.0,65823.0,4.255e-05]
[1727621506259,0.67089589,65824.0,65823.0,4.255e-05]
[1727621506477,0.67389589,65824.0,65823.0,4.255e-05]
[1727621506944,0.66989589,65824.0,65823.0,4.255e-05]
[1727621507184,0.68789589,65824.0,65823.0,4.255e-05]
[1727621507473,0.68189589,65824.0,65823.0,4.255e-05]
[1727621507680,0.69589589,65824.0,65823.0,4.255e-05]
[1727621508763,0.71971339,65824.0,65823.0,4.255e-05]
[1727621508976,0.56332533,65824.0,65823.0,4.255e-05]
[1727621511083,0.56595813,65824.0,65823.0,4.255e-05]
[1727621511507,0.56332533,65824.0,65823.0,4.255e-05]
[1727621511920,0.55132533,65824.0,65823.0,4.255e-05]
[1727621512129,0.56432533,65824.0,65823.0,4.255e-05]
[1727621512336,0.72071339,65824.0,65823.0,4.255e-05]
[1727621512948,0.70671339,65824.0,65823.0,4.255e-05]
[1727621513372,0.72071339,65824.0,65823.0,4.255e-05]
[1727621517623,0.87414875,65824.0,65823.0,4.255e-05]
[1727621518263,0.53869462,65824.0,65823.0,4.255e-05]
[1727621518467,0.851278,65824.0,65823.0,4.255e-05]
[1727621518806,0.85127619,65824.0,65823.0,4.255e-05]
[1727621519246,0.6978333,65824.0,65823.0,4.255e-05]
[1727621521000,0.53644524,65824.0,65823.0,4.255e-05]
[1727621521284,0.5153252,65824.0,65823.0,4.255e-05]
[1727621521502,0.36184524,65824.0,65823.0,4.255e-05]
[1727621521748,0.51543609,65824.0,65823.0,4.255e-05]
[1727621522179,0.3619572,65824.0,65823.0,4.255e-05]
[1727621522807,0.51544396,65824.0,65823.0,4.255e-05]
[1727621523018,0.3619572,65824.0,65823.0,4.255e-05]
[1727621528311,0.36177435,65824.0,65823.0,4.255e-05]
[1727621530017,0.38559221,65824.0,65823.0,4.255e-05]
[1727621530230,0.36177435,65824.0,65823.0,4.255e-05]
[1727621533303,0.38558986,65824.0,65823.0,4.255e-05]
[1727621533539,0.39112665,65824.0,65823.0,4.255e-05]
[1727621535465,0.52763513,65824.0,65823.0,0.17294255]
[1727621535687,0.39112665,65824.0,65823.0,0.17294255]
[1727621535914,0.36731114,65824.0,65823.0,0.17294255]
[1727621536129,0.37284793,65824.0,65823.0,0.17294255]
[1727621536395,0.35984793,65824.0,65823.0,0.17294255]
[1727621536606,0.35884793,65824.0,65823.0,0.17294255]
[1727621536821,0.36784793,65824.0,65823.0,0.17294255]
[1727621537066,0.34584793,65824.0,65823.0,0.17294255]
[1727621537509,0.34684793,65824.0,65823.0,0.17294255]
[1727621537965,0.37066195,65824.0,65823.0,0.17294255]
[1727621538389,0.21874195,65824.0,65823.0,0.17294255]
[1727621538807,0.37066195,65824.0,65823.0,0.17294255]
[1727621539042,0.19492793,65824.0,65823.0,0.28818506]
[1727621539256,0.19492793,65824.0,65823.0,0.52978047]
[1727621539465,0.19492793,65824.0,65823.0,0.44010706]
[1727621539873,0.19492793,65824.0,65823.0,0.32486455]
[1727621539874,0.28594665,65824.0,65823.0,0.32486455]
[1727621541610,0.19492793,65824.0,65823.0,0.32486455]
[1727621542032,0.03567729,65824.0,65823.0,0.32486455]
[1727621542255,0.19626993,65824.0,65823.0,0.44010706]
[1727621542678,0.03567729,65824.0,65823.0,0.44010706]
[1727621543393,0.03567729,65824.0,65823.0,0.28818506]
[1727621543613,0.10390813,65824.0,65823.0,0.32486455]
[1727621543824,0.10390813,65824.0,65823.0,0.17294255]
[1727621544035,0.10390819,65824.0,65823.0,0.32486455]
[1727621544929,0.10390221,65824.0,65823.0,0.32486455]
[1727621545145,0.10390221,65824.0,65823.0,0.17294255]
[1727621545384,0.25582221,65824.0,65823.0,0.17294255]
[1727621546739,0.27963608,65824.0,65823.0,0.17294255]
[1727621546979,0.12771608,65824.0,65823.0,0.17294255]
[1727621547398,0.27963608,65824.0,65823.0,0.17294255]
[1727621547826,0.27963608,65824.0,65823.0,0.09174255]
[1727621548036,0.12771608,65824.0,65823.0,0.09174255]
[1727621548269,0.27963608,65824.0,65823.0,0.09174255]
[1727621548919,0.27963608,65824.0,65823.0,4.255e-05]
[1727621549563,0.27961486,65824.0,65823.0,4.255e-05]
[1727621549991,0.12769486,65824.0,65823.0,4.255e-05]
[1727621550210,0.27961486,65824.0,65823.0,4.255e-05]
[1727621551380,0.12769486,65824.0,65823.0,4.255e-05]
[1727621551865,0.21141116,65824.0,65823.0,4.255e-05]
[1727621552653,0.25580099,65824.0,65823.0,4.255e-05]
[1727621558926,0.18759729,65824.0,65823.0,4.255e-05]
[1727621559136,0.27962485,65824.0,65823.0,4.255e-05]
[1727621559364,0.25581071,65824.0,65823.0,4.255e-05]
[1727621559611,0.18759729,65824.0,65823.0,4.255e-05]
[1727621560233,0.34803052,65824.0,65823.0,4.255e-05]
[1727621561060,0.18759729,65824.0,65823.0,4.255e-05]
[1727621561259,0.34807951,65824.0,65823.0,4.255e-05]
[1727621561474,0.43901778,65824.0,65823.0,4.255e-05]
[1727621562150,0.43903902,65824.0,65823.0,4.255e-05]
[1727621563423,0.34807356,65824.0,65823.0,4.255e-05]
[1727621563989,0.34801893,65824.0,65823.0,4.255e-05]
[1727621564190,0.46178158,65824.0,65823.0,4.255e-05]
[1727621564441,0.5914165,65824.0,65823.0,4.255e-05]
[1727621564620,0.46178158,65824.0,65823.0,4.255e-05]
[1727621566723,0.50210552,65824.0,65823.0,4.255e-05]
[1727621567587,0.38834287,65824.0,65823.0,4.255e-05]
[1727621568770,0.64143843,65824.0,65823.0,4.255e-05]
[1727621568972,0.79782649,65824.0,65823.0,4.255e-05]
[1727621569393,0.917868,65824.0,65823.0,4.255e-05]
[1727621569844,0.84904364,65824.0,65823.0,4.255e-05]
[1727621570058,0.54408705,65824.0,65823.0,4.255e-05]
[1727621572752,0.52027298,65824.0,65823.0,4.255e-05]
[1727621573414,0.52007263,65824.0,65823.0,4.255e-05]
[1727621575677,0.60085607,65824.0,65823.0,4.255e-05]
[1727621575946,0.75724413,65824.0,65823.0,4.255e-05]
[1727621576578,0.98129091,65824.0,65823.0,4.255e-05]
[1727621578070,0.74411941,65824.0,65823.0,4.255e-05]
[1727621578517,0.52007263,65824.0,65823.0,4.255e-05]
[1727621580408,0.54388797,65824.0,65823.0,4.255e-05]
[1727621580615,0.37138797,65824.0,65823.0,4.255e-05]
[1727621581053,0.50803884,65824.0,65823.0,4.255e-05]
[1727621581530,0.37138797,65824.0,65823.0,4.255e-05]
[1727621581706,0.48422695,65824.0,65823.0,4.255e-05]
[1727621585027,0.50804228,65824.0,65823.0,4.255e-05]
[1727621586057,0.21135455,65824.0,65823.0,4.255e-05]
[1727621586270,0.48386846,65824.0,65823.0,4.255e-05]
[1727621590664,0.50768337,65824.0,65823.0,4.255e-05]
[1727621590899,0.50762179,65824.0,65823.0,4.255e-05]
[1727621593371,0.21904792,65824.0,65823.0,0.09364255]
[1727621593622,0.37096792,65824.0,65823.0,0.09364255]
[1727621594600,0.21904792,65824.0,65823.0,0.09364255]
[1727621595596,0.21955508,65824.0,65823.0,0.09364255]
[1727621596525,0.37147508,65824.0,65823.0,0.09364255]
[1727621596753,0.37147508,65824.0,65823.0,4.255e-05]
[1727621597183,0.21955508,65824.0,65823.0,4.255e-05]
[1727621598046,0.37147508,65824.0,65823.0,4.255e-05]
[1727621598272,0.34766017,65824.0,65823.0,4.255e-05]
[1727621599794,0.19574017,65824.0,65823.0,4.255e-05]
[1727621600237,0.34766017,65824.0,65823.0,4.255e-05]
[1727621600444,0.19574017,65824.0,65823.0,4.255e-05]
[1727621600880,0.34766017,65824.0,65823.0,4.255e-05]
[1727621601094,0.19574017,65824.0,65823.0,4.255e-05]
[1727621602361,0.34746956,65824.0,65823.0,4.255e-05]
[1727621602999,0.19554956,65824.0,65823.0,0.15196455]
[1727621605526,0.19554956,65824.0,65823.0,4.255e-05]
[1727621605790,0.19554956,65824.0,65823.0,0.15196455]
[1727621606046,0.34746956,65824.0,65823.0,4.255e-05]
[1727621606286,0.19554956,65824.0,65823.0,4.255e-05]
[1727621608698,0.19554956,65824.0,65823.0,0.15196455]
[1727621608949,0.19554956,65824.0,65823.0,4.255e-05]
[1727621609661,0.19554956,65824.0,65823.0,0.15196455]
[1727621610095,0.21936342,65824.0,65823.0,4.255e-05]
[1727621614622,0.21728582,65824.0,65823.0,4.255e-05]
[1727621614787,0.33118276,65824.0,65823.0,4.255e-05]
[1727621615794,0.21728582,65824.0,65823.0,4.255e-05]
[1727621617234,0.36920582,65824.0,65823.0,4.255e-05]
[1727621617593,0.21728582,65824.0,65823.0,4.255e-05]
[1727621617797,0.36920582,65824.0,65823.0,4.255e-05]
[1727621618790,0.21728582,65824.0,65823.0,0.15196455]
[1727621618995,0.19347196,65824.0,65823.0,4.255e-05]
[1727621619944,0.14951226,65824.0,65823.0,4.255e-05]
[1727621620165,0.30143226,65824.0,65823.0,4.255e-05]
[1727621620385,0.34539196,65824.0,65823.0,4.255e-05]
[1727621620813,0.19347196,65824.0,65823.0,4.255e-05]
[1727621623854,0.19347196,65824.0,65823.0,0.15196455]
[1727621624094,0.19342869,65824.0,65823.0,0.15196455]
[1727621625287,0.19342869,65824.0,65823.0,4.255e-05]
[1727621625752,0.19342869,65824.0,65823.0,0.15196455]
[1727621625988,0.19342869,65824.0,65823.0,4.255e-05]
[1727621626228,0.19342869,65824.0,65823.0,0.15196455]
[1727621628738,0.19333243,65824.0,65823.0,0.15196455]
[1727621630852,0.19333243,65824.0,65823.0,4.255e-05]
[1727621631058,0.19333243,65824.0,65823.0,0.15196455]
[1727621631473,0.19333243,65824.0,65823.0,4.255e-05]
[1727621632240,0.21714639,65824.0,65823.0,4.255e-05]
[1727621633547,0.21720778,65824.0,65823.0,4.255e-05]
[1727621638409,0.36912778,65824.0,65823.0,4.255e-05]
[1727621638627,0.21720778,65824.0,65823.0,4.255e-05]
[1727621638851,0.36912778,65824.0,65823.0,4.255e-05]
[1727621639684,0.35394462,65824.0,65823.0,4.255e-05]
[1727621639889,0.33013066,65824.0,65823.0,4.255e-05]
[1727621640146,0.48205066,65824.0,65823.0,4.255e-05]
[1727621640603,0.34531382,65824.0,65823.0,4.255e-05]
[1727621640828,0.19339382,65824.0,65823.0,4.255e-05]
[1727621641254,0.48205066,65824.0,65823.0,4.255e-05]
[1727621641467,0.34531382,65824.0,65823.0,4.255e-05]
[1727621641673,0.19339382,65824.0,65823.0,4.255e-05]
[1727621642308,0.34531382,65824.0,65823.0,4.255e-05]
[1727621642785,0.19339382,65824.0,65823.0,4.255e-05]
[1727621643015,0.34531382,65824.0,65823.0,4.255e-05]
[1727621643635,0.19339382,65824.0,65823.0,4.255e-05]
[1727621643819,0.34531382,65824.0,65823.0,4.255e-05]
[1727621646228,0.34451523,65824.0,65823.0,4.255e-05]
[1727621649055,0.48131635,65824.0,65823.0,4.255e-05]
[1727621649302,0.34451523,65824.0,65823.0,4.255e-05]
[1727621649534,0.48130422,65824.0,65823.0,4.255e-05]
[1727621650556,0.51949683,65824.0,65823.0,4.255e-05]
[1727621650787,0.67030329,65824.0,65823.0,4.255e-05]
[1727621651032,0.51391523,65824.0,65823.0,4.255e-05]
[1727621651511,0.59469683,65824.0,65823.0,4.255e-05]
[1727621651773,0.61851229,65824.0,65823.0,4.255e-05]
[1727621653371,0.59469683,65824.0,65823.0,4.255e-05]
[1727621654696,0.59469683,65824.0,65812.0,0.22773358]
[1727621654905,0.09115608,65814.0,65812.0,0.21632917]
[1727621655186,0.09115608,65814.0,65811.0,0.15195]
[1727621655394,0.0957805,65813.0,65811.0,0.15195]
[1727621655610,0.09577444,65813.0,65811.0,0.15195]
[1727621656239,0.06835957,65812.0,65811.0,0.15195]
[1727621656457,0.09577444,65813.0,65811.0,0.15295]
[1727621656673,0.02741416,65812.0,65811.0,0.15195]
[1727621657089,0.02741416,65812.0,65811.0,0.15295]
[1727621658146,0.07297984,65812.0,65811.0,0.15395]
[1727621658782,0.07297984,65812.0,65811.0,0.15295]
[1727621659222,0.07397984,65812.0,65811.0,0.15395]
[1727621659450,0.07397984,65812.0,65811.0,0.154777]
[1727621659669,0.07563384,65812.0,65811.0,0.153777]
[1727621659884,0.03106816,65812.0,65811.0,0.154777]
[1727621660551,0.07662647,65812.0,65811.0,0.154777]
[1727621662653,0.07662254,65812.0,65811.0,0.154777]
[1727621664971,0.03106816,65812.0,65811.0,0.154777]
[1727621666895,0.03106816,65812.0,65811.0,0.2355586]
[1727621669808,0.003654,65812.0,65811.0,0.2355586]
[1727621670659,0.03118182,65812.0,65811.0,0.2355586]
[1727621673597,0.003654,65812.0,65811.0,0.2355586]
[1727621673798,0.03118307,65812.0,65811.0,0.2355586]
[1727621674752,0.003654,65812.0,65811.0,0.2355586]
[1727621675783,0.003654,65812.0,65811.0,0.154777]
[1727621676003,0.003654,65812.0,65811.0,0.2355586]
[1727621676404,0.03104838,65812.0,65811.0,0.2355586]
[1727621676933,0.03104838,65812.0,65811.0,0.002827]
[1727621676934,0.27493624,65812.0,65811.0,0.002827]
[1727621677088,0.44949423,65812.0,65811.0,0.002827]
[1727621677319,0.36299627,65812.0,65811.0,0.002827]
[1727621677533,0.47687144,65812.0,65811.0,0.002827]
[1727621677953,0.47687144,65812.0,65811.0,0.001827]
[1727621677954,0.47587144,65812.0,65811.0,0.001827]
[1727621678309,0.47587144,65812.0,65811.0,0.002827]
[1727621678310,0.36299627,65812.0,65811.0,0.002827]
[1727621678729,0.36199627,65812.0,65811.0,0.001827]
[1727621678928,0.36199627,65812.0,65811.0,0.000827]
[1727621678929,0.36099627,65812.0,65811.0,0.000827]
[1727621679212,0.36099627,65812.0,65811.0,0.002827]
[1727621679213,0.47558384,65812.0,65811.0,0.002827]
[1727621679428,0.36271288,65812.0,65811.0,0.002827]
[1727621681621,0.45379664,65812.0,65811.0,0.002827]
[1727621681797,0.45361376,65812.0,65811.0,0.002827]
[1727621681999,0.4300083,65812.0,65811.0,0.002827]
[1727621682406,0.43000756,65812.0,65811.0,0.002827]
[1727621682632,0.4538253,65812.0,65811.0,0.002827]
[1727621685085,0.36274228,65812.0,65811.0,0.002827]